bitfinex-derivatives/quotes_SOLF0:USTF0_20250310
["timestamp","ask_amount","ask_price","bid_price","bid_amount"]
[1741645147746,4.1409,118.36,118.29,35.81427042]
[1741645147747,8.4571,118.3,118.29,35.81427042]
[1741645148046,4.1409,118.36,118.29,35.81427042]
[1741645148343,4.1409,118.36,118.29,0.05427042]
[1741645148344,8.4571,118.3,118.29,0.05427042]
[1741645148844,69.11187348,118.31,118.23,44.0796]
[1741645149334,8.4618,118.24,118.2,36.6075648]
[1741645149537,33.35187348,118.27,118.2,35.76]
[1741645149935,8.464,118.21,118.18,92.87569915]
[1741645150135,69.11187348,118.25,118.18,92.87569915]
[1741645150339,0.05692197,118.21,118.18,92.87569915]
[1741645150538,8.52092197,118.21,118.18,92.87569915]
[1741645150739,0.05692197,118.21,118.18,92.87569915]
[1741645151545,0.05692197,118.21,118.18,92.93522206]
[1741645152240,0.05692197,118.21,118.18,0.05952291]
[1741645152843,33.40879545,118.21,118.18,0.05952291]
[1741645153044,33.40879545,118.21,118.13,4.0822]
[1741645153247,33.35187348,118.19,118.09,4.485]
[1741645153447,33.35187348,118.19,118.09,35.76]
[1741645153448,35.76,118.18,118.09,35.76]
[1741645153638,73.28197348,118.21,118.1,33.35187348]
[1741645153842,8.4644,118.2,118.15,8.4677]
[1741645154043,8.4644,118.2,118.15,44.2277]
[1741645154246,73.28197348,118.21,118.16,0.06068324]
[1741645154247,0.05582135,118.19,118.16,0.06068324]
[1741645154843,33.40769483,118.19,118.16,0.06068324]
[1741645155046,8.4675,118.16,118.1,44.2309]
[1741645155640,8.4675,118.16,118.1,8.4709]
[1741645155849,8.468,118.15,118.11,35.78]
[1741645156050,33.35187348,118.17,118.12,0.05966988]
[1741645156550,0.06298126,118.16,118.13,35.78]
[1741645156944,0.06298126,118.16,118.13,35.84021897]
[1741645158052,0.06298126,118.16,118.14,8.468]
[1741645158443,191.06298126,118.16,118.13,0.06021897]
[1741645158645,33.35187348,118.14,118.01,279.1]
[1741645158952,33.35187348,118.14,118.04,33.35187348]
[1741645159151,8.47,118.12,118.05,8.4746]
[1741645159549,8.7591,118.15,118.06,69.13187348]
[1741645159750,0.05691595,118.1,118.07,0.06256911]
[1741645159949,0.05691595,118.1,118.06,69.13187348]
[1741645160149,0.05691595,118.1,118.07,0.06005458]
[1741645160854,0.05691595,118.1,118.07,4.24525458]
[1741645161053,191.0,118.16,118.1,8.4709]
[1741645161352,191.0,118.16,118.11,35.8]
[1741645162252,0.06488782,118.15,118.12,0.05887468]
[1741645163749,8.4689,118.14,118.12,0.05887468]
[1741645163952,0.06488782,118.15,118.12,0.05887468]
[1741645165056,8.4693,118.13,118.12,0.05887468]
[1741645165559,0.06488782,118.15,118.12,0.05887468]
[1741645165761,8.4691,118.14,118.12,0.05887468]
[1741645166654,0.06488782,118.15,118.12,0.05887468]
[1741645167657,0.06488782,118.15,118.12,8.52847468]
[1741645168052,0.06488782,118.15,118.12,0.05887468]
[1741645168261,0.06488782,118.15,118.12,8.52867468]
[1741645168653,0.06488782,118.15,118.12,0.05887468]
[1741645168852,0.06488782,118.15,118.14,8.4685]
[1741645169061,0.06488782,118.15,118.14,44.2685]
[1741645169261,191.0,118.16,118.14,35.8]
[1741645169462,191.0,118.16,118.15,8.4678]
[1741645169662,115.96584354,118.16,118.15,8.4678]
[1741645169858,102.77114354,118.16,118.15,8.4678]
[1741645170059,76.57524354,118.16,118.15,8.4678]
[1741645170260,16.5557,118.22,118.18,8.4655]
[1741645170459,8.0925,118.22,118.19,35.8]
[1741645170762,0.06212881,118.21,118.2,41.81607348]
[1741645170963,4.0505,118.27,118.2,33.35187348]
[1741645171157,0.06257504,118.22,118.2,33.35187348]
[1741645171365,4.0505,118.27,118.19,35.8]
[1741645171566,0.06147744,118.22,118.2,0.05407898]
[1741645171959,0.05780321,118.22,118.2,0.05407898]
[1741645172261,8.4151,118.31,118.2,33.40595246]
[1741645172262,41.76697348,118.31,118.2,33.40595246]
[1741645172462,45.81747348,118.31,118.2,33.40595246]
[1741645172769,45.81747348,118.31,118.2,33.35187348]
[1741645173161,33.35187348,118.29,118.2,33.35187348]
[1741645173362,8.4603,118.26,118.21,8.4634]
[1741645173573,8.51865512,118.26,118.23,0.05944229]
[1741645174060,0.05835512,118.26,118.23,0.05944229]
[1741645174461,8.51835512,118.26,118.23,0.05944229]
[1741645174674,0.05835512,118.26,118.23,0.05944229]
[1741645175657,0.05835512,118.26,118.23,8.52104229]
[1741645175862,0.05835512,118.26,118.23,0.05944229]
[1741645176263,8.51835512,118.26,118.23,0.05944229]
[1741645176567,0.05835512,118.26,118.23,0.05944229]
[1741645177067,8.4607,118.25,118.23,0.05944229]
[1741645177261,0.05835512,118.26,118.23,0.05944229]
[1741645177462,33.35187348,118.23,118.17,35.78]
[1741645177661,8.5833,118.22,118.17,35.78]
[1741645177858,8.4657,118.18,118.17,35.78]
[1741645178263,33.35187348,118.21,118.12,33.35187348]
[1741645178465,0.06302634,118.16,118.14,0.0591106]
[1741645178861,8.4665,118.17,118.14,0.0591106]
[1741645179167,0.05887681,118.16,118.14,0.0591106]
[1741645179661,0.05887681,118.16,118.15,8.4678]
[1741645179862,8.5833,118.22,118.14,0.0591106]
[1741645179863,4.2638,118.22,118.14,35.95098408]
[1741645180062,4.386,118.25,118.17,33.35187348]
[1741645180270,4.386,118.25,118.18,35.78]
[1741645181066,0.06487021,118.23,118.2,0.05712062]
[1741645181470,8.4635,118.21,118.2,0.05712062]
[1741645181672,0.06487021,118.23,118.2,0.05712062]
[1741645181868,8.52737021,118.23,118.2,0.05712062]
[1741645182068,0.06487021,118.23,118.2,0.05712062]
[1741645182469,8.4649,118.2,118.17,35.78]
[1741645182772,33.35187348,118.24,118.17,35.78]
[1741645183666,8.4654,118.19,118.17,35.78]
[1741645184061,33.35187348,118.22,118.17,35.78]
[1741645184267,8.4657,118.18,118.17,35.78]
[1741645184768,0.05419152,118.19,118.17,35.78]
[1741645185572,0.05419152,118.19,118.18,8.4657]
[1741645185771,0.05419152,118.19,118.17,35.78]
[1741645188763,0.05419152,118.19,118.18,8.4657]
[1741645192074,0.05419152,118.19,118.17,35.78]
[1741645192271,0.05419152,118.19,118.16,0.0649151]
[1741645192678,8.4657,118.18,118.16,0.0649151]
[1741645192879,0.05419152,118.19,118.16,0.0649151]
[1741645193279,8.4664,118.17,118.16,0.0649151]
[1741645193978,8.4687,118.14,118.12,35.78]
[1741645194284,8.4687,118.14,118.11,35.78]
[1741645194578,8.4693,118.13,118.11,35.78]
[1741645194772,37.60537348,118.18,118.11,35.78]
[1741645194970,0.06075552,118.16,118.13,0.06209156]
[1741645195877,8.4685,118.14,118.13,0.06209156]
[1741645196075,0.06075552,118.16,118.1,314.92]
[1741645196277,37.60537348,118.18,118.1,314.92]
[1741645196574,37.60537348,118.18,118.1,35.78]
[1741645196780,8.4706,118.12,118.1,35.78]
[1741645196980,8.4706,118.12,118.08,8.4726]
[1741645197177,0.06014738,118.12,118.1,0.06482864]
[1741645198776,0.06014738,118.12,118.1,8.53582864]
[1741645198979,0.06014738,118.12,118.11,35.78]
[1741645199582,0.06014738,118.12,118.11,44.2507]
[1741645200181,0.06014738,118.12,118.11,35.78]
[1741645203886,0.06014738,118.12,118.11,44.2507]
[1741645204686,0.06014738,118.12,118.11,77.60257348]
[1741645204881,4.2535,118.18,118.11,80.14257348]
[1741645205088,8.2828,118.19,118.13,33.35187348]
[1741645205279,8.4646,118.2,118.15,33.35187348]
[1741645205685,8.4639,118.21,118.16,8.4665]
[1741645205882,8.4639,118.21,118.17,35.78]
[1741645206194,0.0574615,118.2,118.18,8.4652]
[1741645206390,0.0574615,118.2,118.17,35.83814182]
[1741645206992,8.5222615,118.2,118.17,35.83814182]
[1741645207492,0.0574615,118.2,118.17,35.83814182]
[1741645207693,33.40933498,118.2,118.13,35.78]
[1741645208986,33.40933498,118.2,118.15,0.06457465]
[1741645209190,8.4671,118.16,118.15,0.06457465]
[1741645209596,0.06367067,118.17,118.13,35.78]
[1741645209890,8.469,118.14,118.11,279.26]
[1741645210091,8.469,118.14,118.12,35.78]
[1741645210296,4.4442,118.16,118.12,35.78]
[1741645210497,35.78,118.19,118.12,35.78]
[1741645210694,0.05874226,118.15,118.13,0.06057127]
[1741645211092,0.05874226,118.15,118.14,8.4679]
[1741645211595,8.4685,118.14,118.13,0.06057127]
[1741645211795,0.05874226,118.15,118.13,0.06057127]
[1741645212100,0.05874226,118.15,118.13,8.52947127]
[1741645212299,0.05874226,118.15,118.13,0.06057127]
[1741645213199,8.52724226,118.15,118.13,0.06057127]
[1741645213399,0.05874226,118.15,118.13,0.06057127]
[1741645215696,0.05874226,118.15,118.14,8.4685]
[1741645216103,33.35187348,118.24,118.14,33.35187348]
[1741645216400,8.464,118.21,118.17,8.4658]
[1741645216603,8.464,118.21,118.18,35.78]
[1741645216796,8.4632,118.22,118.18,44.2456]
[1741645216998,8.6392,118.24,118.18,35.78]
[1741645217301,0.05375803,118.21,118.19,0.05693425]
[1741645217503,0.05375803,118.21,118.15,35.78]
[1741645217698,33.35187348,118.22,118.15,35.78]
[1741645217901,8.4646,118.2,118.15,35.78]
[1741645218203,41.99107348,118.24,118.15,35.78]
[1741645218403,8.4668,118.17,118.15,35.78]
[1741645218705,0.05386961,118.17,118.15,35.83438591]
[1741645218902,0.05386961,118.17,118.16,8.4671]
[1741645219104,0.05386961,118.17,118.15,35.83438591]
[1741645219503,0.05386961,118.17,118.16,8.4671]
[1741645219700,0.05386961,118.17,118.15,35.83438591]
[1741645221001,0.05386961,118.17,118.15,69.18625939]
[1741645221203,0.05386961,118.17,118.16,8.4671]
[1741645221598,6.961e-05,118.17,118.16,8.4671]
[1741645221806,6.961e-05,118.17,118.16,11.0071]
[1741645222507,8.6392,118.24,118.16,2.54]
[1741645222717,4.2532,118.24,118.15,35.78]
[1741645223005,4.2532,118.24,118.18,8.4653]
[1741645223204,4.2532,118.24,118.18,44.2253]
[1741645223501,0.05879833,118.22,118.19,0.05640941]
[1741645225002,0.05879833,118.22,118.2,8.4638]
[1741645225203,0.05879833,118.22,118.19,0.05640941]
[1741645226608,8.52189833,118.22,118.19,0.05640941]
[1741645226808,0.05879833,118.22,118.19,0.05640941]
[1741645227613,8.4642,118.2,118.19,0.05640941]
[1741645227903,0.05879833,118.22,118.19,0.05640941]
[1741645228104,0.05879833,118.22,118.2,35.76]
[1741645228610,0.05879833,118.22,118.2,44.2239]
[1741645228810,0.05879833,118.22,118.2,35.76]
[1741645229017,0.05879833,118.22,118.2,69.11187348]
[1741645229310,0.05879833,118.22,118.21,8.4635]
[1741645229702,0.05879833,118.22,118.2,35.76]
[1741645231406,0.05879833,118.22,118.21,8.4635]
[1741645232807,0.05879833,118.22,118.2,35.76]
[1741645233305,8.4642,118.21,118.19,0.05640941]
[1741645233511,0.05879833,118.22,118.19,0.05640941]
[1741645234615,0.05879833,118.22,118.19,8.52090941]
[1741645234812,0.05879833,118.22,118.19,0.05640941]
[1741645235412,8.4639,118.21,118.19,0.05640941]
[1741645235715,0.05879833,118.22,118.19,0.05640941]
[1741645236114,8.52209833,118.22,118.19,0.05640941]
[1741645236307,0.05879833,118.22,118.19,0.05640941]
[1741645236511,8.52169833,118.22,118.19,0.05640941]
[1741645236712,0.05879833,118.22,118.19,0.05640941]
[1741645237817,8.52199833,118.22,118.19,0.05640941]
[1741645238018,0.05879833,118.22,118.19,0.05640941]
[1741645238218,0.05879833,118.22,118.2,35.74]
[1741645238407,0.05879833,118.22,118.2,44.2039]
[1741645238607,0.05879833,118.22,118.2,35.74]
[1741645241521,0.05879833,118.22,118.2,44.2042]
[1741645241714,0.05879833,118.22,118.2,35.74]
[1741645242117,0.05879833,118.22,118.21,8.4635]
[1741645242620,8.5328,118.29,118.25,8.4603]
[1741645242821,73.16417348,118.35,118.26,35.74]
[1741645243011,4.2973,118.34,118.27,35.74]
[1741645243216,8.4557,118.32,118.27,35.74]
[1741645243416,4.2973,118.34,118.27,35.74]
[1741645243618,0.05677045,118.31,118.29,8.4572]
[1741645243920,0.05677045,118.31,118.3,35.74]
[1741645244919,0.05677045,118.31,118.28,0.0629339]
[1741645245116,1.47117885,118.4,118.29,337.68187348]
[1741645245416,46.61420283,118.44,118.29,337.68187348]
[1741645245417,33.35187348,118.43,118.32,33.35187348]
[1741645245612,33.35187348,118.43,118.33,35.74]
[1741645245812,33.35187348,118.43,118.34,8.4542]
[1741645246120,33.35187348,118.41,118.33,35.74]
[1741645246317,33.35187348,118.41,118.31,4.0623]
[1741645246318,0.06253557,118.4,118.37,0.06336381]
[1741645256028,4.0649,118.45,118.38,33.35187348]
[1741645256333,4.0649,118.45,118.39,35.7]
[1741645256928,4.0649,118.45,118.39,44.15]
[1741645257134,0.0625772,118.43,118.41,0.0581477]
[1741645257434,0.0625772,118.43,118.42,35.7]
[1741645257825,0.0625772,118.43,118.41,0.0581477]
[1741645259429,33.35187348,118.42,118.37,35.7]
[1741645259634,33.35187348,118.42,118.36,314.64]
[1741645259931,8.4498,118.41,118.36,314.64]
[1741645260130,33.35187348,118.42,118.36,314.64]
[1741645260327,33.35187348,118.44,118.36,314.64]
[1741645260634,0.06053641,118.4,118.38,0.0601787]
[1741645260828,8.51053641,118.4,118.38,0.0601787]
[1741645261029,33.41240989,118.4,118.34,35.68]
[1741645261230,33.35187348,118.44,118.31,278.74]
[1741645261231,33.35187348,118.38,118.31,278.74]
[1741645261430,8.4523,118.37,118.33,35.68]
[1741645262029,33.35187348,118.38,118.34,0.06140743]
[1741645262030,8.51254255,118.36,118.34,0.06140743]
[1741645263027,0.05964255,118.36,118.34,0.06140743]
[1741645263433,0.05964255,118.36,118.3,1.69061707]
[1741645263637,0.05964255,118.36,118.31,35.68]
[1741645263837,33.41151603,118.36,118.3,1.69061707]
[1741645264131,8.4561,118.32,118.29,35.68]
[1741645264529,8.4552,118.33,118.29,35.68]
[1741645264731,0.05572528,118.32,118.29,35.73344351]
[1741645265935,0.05572528,118.32,118.3,8.4566]
[1741645266235,8.4929,118.39,118.3,33.35187348]
[1741645266427,4.2816,118.39,118.32,33.35187348]
[1741645266631,4.2816,118.39,118.33,35.7]
[1741645267438,0.06483804,118.37,118.35,0.0557144]
[1741645267635,8.4528,118.36,118.35,0.0557144]
[1741645268437,33.35187348,118.36,118.31,35.7]
[1741645268734,4.3702,118.35,118.3,35.7]
[1741645268940,12.8241,118.35,118.3,35.7]
[1741645269238,4.3702,118.35,118.3,35.7]
[1741645269441,8.4545,118.34,118.3,35.7]
[1741645269738,0.05831225,118.34,118.31,0.05538679]
[1741645269933,4.3702,118.35,118.31,0.05538679]
[1741645270134,33.40967686,118.34,118.26,278.74]
[1741645270335,54.2641177,118.34,118.27,35.7]
[1741645270530,54.20631432,118.34,118.27,35.7]
[1741645270738,54.20631432,118.32,118.25,35.7]
[1741645271131,0.05828485,118.3,118.27,0.06378419]
[1741645271640,8.4585,118.28,118.27,0.06378419]
[1741645274444,8.4585,118.28,118.19,1.47127214]
[1741645274445,89.90631432,118.28,118.18,54.20631432]
[1741645274640,89.90631432,118.28,118.19,37.24276189]
[1741645274854,89.90631432,118.28,118.19,35.7]
[1741645275345,54.20631432,118.26,118.19,35.7]
[1741645275545,8.8053,118.25,118.19,35.7]
[1741645275849,8.8053,118.25,118.14,1.47167657]
[1741645275850,54.20631432,118.22,118.13,35.7]
[1741645276049,54.20631432,118.2,118.1,429.30773287]
[1741645276349,4.3777,118.19,118.11,35.7]
[1741645276546,54.20631432,118.18,118.11,35.7]
[1741645276742,35.7,118.17,118.08,146.42893287]
[1741645276946,0.06054248,118.16,118.13,0.06146978]
[1741645277146,54.20631432,118.15,118.08,92.22261855]
[1741645277451,35.7,118.14,118.08,92.22261855]
[1741645277941,4.2529,118.13,118.08,92.22261855]
[1741645278147,58.45921432,118.13,118.08,92.22261855]
[1741645278346,0.05849353,118.12,118.08,92.22261855]
[1741645278548,35.75849353,118.12,118.08,92.22261855]
[1741645278749,0.05849353,118.12,118.08,92.22261855]
[1741645279151,0.05849353,118.12,118.09,54.20631432]
[1741645279341,8.5178,118.18,118.1,35.72]
[1741645279546,54.20631432,118.17,118.1,35.72]
[1741645280051,8.5178,118.18,118.1,35.72]
[1741645280449,0.06481903,118.15,118.13,0.05849353]
[1741645280649,0.06481903,118.15,118.13,35.77849353]
[1741645286556,0.06481903,118.15,118.13,44.24759353]
[1741645286957,0.06481903,118.15,118.13,35.77849353]
[1741645287156,0.06481903,118.15,118.13,44.24749353]
[1741645287757,0.06481903,118.15,118.13,35.77849353]
[1741645288849,0.06481903,118.15,118.09,8.4718]
[1741645289147,54.27113335,118.15,118.1,35.74]
[1741645289553,54.20631432,118.15,118.1,35.74]
[1741645289753,8.4688,118.14,118.1,35.74]
[1741645289947,54.20631432,118.15,118.1,44.211]
[1741645290151,0.05340361,118.13,118.1,35.74]
[1741645292755,0.05340361,118.13,118.11,8.4703]
[1741645292955,0.05340361,118.13,118.1,35.74]
[1741645293460,8.4702,118.12,118.06,278.98]
[1741645293753,54.20631432,118.15,118.08,8.4723]
[1741645293955,0.06198115,118.1,118.01,2.3225084]
[1741645294149,54.20631432,118.09,118.02,1.54478757]
[1741645294356,54.20631432,118.05,117.98,35.86]
[1741645294562,8.4762,118.04,117.99,1.54536116]
[1741645294862,0.0539563,118.03,117.99,1.54536116]
[1741645295054,0.0539563,118.03,117.98,35.86]
[1741645295350,0.0539563,118.03,117.99,1.54540493]
[1741645295552,0.0539563,118.03,117.97,8.4805]
[1741645295751,0.0539563,118.03,117.98,1.54557478]
[1741645295956,0.0632079,118.02,117.99,35.88]
[1741645296151,0.0632079,118.02,117.91,235.33684638]
[1741645296357,54.20631432,118.04,117.94,54.20631432]
[1741645296552,0.0645116,117.98,117.95,1.54559078]
[1741645296758,8.4745,118.06,117.96,369.42631432]
[1741645296957,8.4745,118.06,117.98,54.20631432]
[1741645297159,90.08631432,118.08,117.99,37.42559078]
[1741645297458,8.4743,118.06,117.99,44.3588]
[1741645297658,66.84401432,118.1,118.0,54.20631432]
[1741645297860,0.05710245,118.06,118.03,8.4762]
[1741645298063,0.05710245,118.06,118.04,35.96121976]
[1741645299060,54.20631432,118.15,118.04,90.16753408]
[1741645299358,4.1569,118.13,118.06,54.20631432]
[1741645299659,4.1569,118.13,118.07,36.06]
[1741645300253,0.06302921,118.11,118.09,0.05679628]
[1741645300962,8.53372921,118.11,118.09,0.05679628]
[1741645301161,54.26934353,118.11,118.06,36.12]
[1741645301362,54.20631432,118.11,118.03,279.38]
[1741645301660,54.20631432,118.11,118.04,36.14]
[1741645301870,58.36321432,118.13,118.04,36.14]
[1741645302262,0.05419065,118.1,118.07,0.05635292]
[1741645302462,0.05419065,118.1,118.08,36.16]
[1741645303163,0.05419065,118.1,118.07,0.05635292]
[1741645306770,8.4674,118.16,118.07,1.60066819]
[1741645307070,8.4674,118.16,118.07,6.37901527]
[1741645307371,66.97121432,118.17,118.08,55.75062959]
[1741645307567,4.2982,118.17,118.09,36.32]
[1741645307868,0.05981489,118.14,118.11,0.06452256]
[1741645308068,0.05981489,118.14,118.12,36.26]
[1741645308670,0.05981489,118.14,118.12,44.7295]
[1741645308967,0.05981489,118.14,118.11,0.06452256]
[1741645310472,8.47,118.12,118.11,0.06452256]
[1741645310668,58.64571432,118.13,118.03,279.38]
[1741645310868,58.42621432,118.11,118.04,37.72464126]
[1741645311073,8.4725,118.09,118.04,44.6554]
[1741645311264,58.42621432,118.11,118.03,279.38]
[1741645311568,4.2199,118.11,118.05,36.16]
[1741645312070,4.4394,118.13,118.05,36.16]
[1741645312071,0.05788583,118.09,118.07,0.05447426]
[1741645312272,0.05788583,118.09,118.08,36.2]
[1741645313675,54.20631432,118.16,118.08,36.2]
[1741645314265,8.4699,118.13,118.08,44.6726]
[1741645314469,54.20631432,118.16,118.08,36.2]
[1741645314773,0.06333356,118.13,118.11,0.0635739]
[1741645314974,0.06333356,118.13,118.12,36.14]
[1741645315372,0.06333356,118.13,118.12,44.6099]
[1741645315768,4.2261,118.18,118.12,36.14]
[1741645315969,4.2261,118.18,118.14,8.4681]
[1741645316171,4.2261,118.18,118.15,36.14]
[1741645317072,4.2261,118.18,118.15,44.6074]
[1741645317278,58.52441432,118.21,118.15,36.14]
[1741645317476,4.3181,118.21,118.17,8.4658]
[1741645317676,4.3181,118.21,118.18,36.08]
[1741645317872,0.05817207,118.19,118.18,36.08]
[1741645319980,4.3181,118.24,118.18,36.08]
[1741645320778,8.4626,118.23,118.18,36.08]
[1741645321078,0.05978542,118.22,118.2,0.05837408]
[1741645322281,0.05978542,118.22,118.21,35.94]
[1741645323181,8.52258542,118.22,118.21,35.94]
[1741645323383,0.05978542,118.22,118.21,35.94]
[1741645325983,0.05978542,118.22,118.21,44.4035]
[1741645326187,62.75081432,118.29,118.21,35.94]
[1741645326686,8.4588,118.28,118.24,8.4613]
[1741645326876,62.75081432,118.29,118.25,35.92]
[1741645327083,8.5445,118.29,118.25,44.3802]
[1741645327476,0.05773325,118.28,118.26,0.05801134]
[1741645327690,0.05773325,118.28,118.26,8.51791134]
[1741645328379,0.05773325,118.28,118.27,8.4592]
[1741645328579,8.4348,118.34,118.26,0.05801134]
[1741645328788,8.4348,118.34,118.26,1.54169954]
[1741645328987,8.4348,118.34,118.3,8.4568]
[1741645329179,8.4348,118.34,118.31,35.94]
[1741645329878,8.49778589,118.34,118.31,35.99535135]
[1741645330284,54.20631432,118.33,118.31,0.05535135]
[1741645330491,54.20631432,118.33,118.25,279.1]
[1741645330689,8.4572,118.3,118.27,35.98]
[1741645330885,54.20631432,118.31,118.27,35.98]
[1741645331286,8.4583,118.29,118.27,35.98]
[1741645331583,0.06021514,118.29,118.27,36.04443211]
[1741645331784,8.4585,118.28,118.27,36.04443211]
[1741645331985,54.26652946,118.29,118.2,283.0493]
[1741645332187,4.2694,118.28,118.21,37.50237663]
[1741645332489,4.2694,118.28,118.22,1.54237663]
[1741645332694,4.2694,118.28,118.22,36.0]
[1741645332985,4.2694,118.28,118.22,44.4626]
[1741645333186,4.2694,118.28,118.24,0.06321537]
[1741645333388,0.05706694,118.26,118.24,0.06321537]
[1741645334791,0.05706694,118.26,118.25,44.4807]
[1741645335193,0.05706694,118.26,118.25,36.02]
[1741645335588,4.1496,118.32,118.25,36.02]
[1741645335795,58.45061432,118.35,118.25,36.02]
[1741645335990,8.4554,118.33,118.28,8.4581]
[1741645336184,4.2443,118.34,118.29,36.0]
[1741645336396,8.4557,118.32,118.29,36.0]
[1741645336592,4.2443,118.34,118.29,36.0]
[1741645336799,0.05526719,118.32,118.29,36.06359455]
[1741645337591,8.4568,118.31,118.29,36.06359455]
[1741645337794,0.05526719,118.32,118.29,36.06359455]
[1741645337997,54.20631432,118.31,118.29,29.36419455]
[1741645338191,33.37604905,118.3,118.26,36.06]
[1741645338601,8.4591,118.28,118.26,36.06]
[1741645339097,33.37604905,118.3,118.26,36.06]
[1741645339310,33.37604905,118.32,118.26,36.06]
[1741645339516,0.06180144,118.28,118.26,36.1175773]
[1741645339812,0.06240885,118.3,118.26,36.1175773]
[1741645340202,0.06240885,118.3,118.29,8.4578]
[1741645340399,0.06240885,118.3,118.29,44.4978]
[1741645341412,0.06240885,118.3,118.29,36.04]
[1741645342209,8.4531,118.36,118.29,36.04]
[1741645342413,33.37604905,118.38,118.29,36.04]
[1741645342606,8.4523,118.37,118.33,8.4549]
[1741645342806,33.37604905,118.38,118.33,36.0]
[1741645343311,0.05705796,118.37,118.34,0.05337116]
[1741645344116,33.37604905,118.36,118.3,35.96]
[1741645344302,33.37604905,118.34,118.27,278.98]
[1741645344503,4.4101,118.33,118.28,35.96]
[1741645344910,8.4558,118.32,118.28,35.96]
[1741645345113,4.4101,118.33,118.28,35.96]
[1741645345312,0.06419603,118.31,118.29,0.05734175]
[1741645348014,0.06419603,118.31,118.29,8.51504175]
[1741645348215,0.06419603,118.31,118.29,0.05734175]
[1741645348617,0.06419603,118.31,118.29,36.05734175]
[1741645348917,0.06419603,118.31,118.29,0.05734175]
[1741645349116,8.4571,118.3,118.29,0.05734175]
[1741645349713,0.06419603,118.31,118.23,16.4322]
[1741645349908,8.4593,118.27,118.24,36.02]
[1741645350716,8.4593,118.27,118.22,287.3623]
[1741645350717,8.4597,118.27,118.22,287.3623]
[1741645350917,8.51508998,118.27,118.24,0.06279018]
[1741645353020,8.4604,118.26,118.24,0.06279018]
[1741645353319,0.05538998,118.27,118.24,0.06279018]
[1741645353823,8.4607,118.25,118.24,0.06279018]
[1741645355323,2.54,118.25,118.18,35.88]
[1741645355522,37.44504905,118.26,118.18,35.88]
[1741645355523,4.3604,118.24,118.18,35.88]
[1741645356217,8.4633,118.22,118.18,44.3456]
[1741645356520,8.52096115,118.22,118.2,0.05861911]
[1741645357115,0.05766115,118.22,118.2,0.05861911]
[1741645357319,8.4635,118.21,118.2,0.05861911]
[1741645359222,0.05766115,118.22,118.2,0.05861911]
[1741645359429,0.05766115,118.22,118.2,35.91861911]
[1741645359821,8.52086115,118.22,118.2,35.91861911]
[1741645360621,0.05766115,118.22,118.2,35.91861911]
[1741645360825,0.05766115,118.22,118.21,8.4635]
[1741645364332,0.05766115,118.22,118.2,35.91861911]
[1741645367432,0.05766115,118.22,118.2,0.05861911]
[1741645367635,8.4635,118.21,118.2,0.05861911]
[1741645369645,8.52086115,118.22,118.17,35.74]
[1741645369938,0.05766115,118.22,118.17,35.74]
[1741645370138,8.464,118.21,118.17,35.74]
[1741645370635,8.464,118.21,118.18,0.05535997]
[1741645370834,8.52076115,118.22,118.18,0.05535997]
[1741645371336,0.05766115,118.22,118.18,0.05535997]
[1741645371734,8.4636,118.21,118.18,0.05535997]
[1741645372238,8.52086115,118.22,118.18,0.05535997]
[1741645372736,0.05766115,118.22,118.18,0.05535997]
[1741645373038,33.4337102,118.22,118.18,0.05535997]
[1741645373239,8.4667,118.17,118.14,35.74]
[1741645373436,33.37604905,118.2,118.08,125.5986676]
[1741645373437,33.37604905,118.18,118.09,5.17080606]
[1741645373639,33.37604905,118.16,118.1,37.28398993]
[1741645373841,8.469,118.14,118.1,1.54398993]
[1741645374038,33.37604905,118.16,118.08,92.22261855]
[1741645374237,8.4583,118.15,118.09,35.74]
[1741645374441,0.05810203,118.13,118.09,44.212]
[1741645374942,0.05810203,118.13,118.09,35.74]
[1741645375142,0.05810203,118.13,118.11,8.4701]
[1741645375343,0.05810203,118.13,118.12,35.74]
[1741645375744,0.05810203,118.13,118.12,44.21]
[1741645375941,8.3226,118.19,118.12,35.74]
[1741645375942,4.2591,118.19,118.12,35.74]
[1741645376344,4.2591,118.19,118.14,8.4681]